Cogmind - Beta 12 @@@ ROGUE MODE // 2023.07.26 @ 16:19:37 Player: Raix Result: Core destroyed Performance ------------- Evolutions (2) 1000 Regions Visited (3) 600 Robots Destroyed (10) 50 Value Destroyed (351) 351 Prototype IDs (3) 60 Alien Tech Used (0) 0 Bonus (0) 0 TOTAL SCORE: 2061 Bonus ------- None Cogmind --------- Core Integrity 0/550 Matter 196/300 Energy 99/100 System Corruption 0% Temperature Cool (0) Movement Core (50) Location -8/Materials Parts ------- > --- POWER (3) -------- (None) > --- PROPULSION (4) --- (None) > --- UTILITY (2) ------ (None) > --- WEAPON (2) ------- (None) > --- INVENTORY (5) ---- Beam Cannon Flak Cannon Peak State ------------ > --- POWER ------------ Heavy Deuterium Engine Heavy Deuterium Engine > --- PROPULSION ------- Improved Aluminum Leg > --- UTILITY ---------- Advanced Visual Processing Unit > --- WEAPON ----------- Beam Rifle Flak Cannon > --- INVENTORY -------- Beam Cannon [Rating: 20] Favorites ----------- Power Ion Engine Engine Ion Engine Propulsion Wheel Leg Aluminum Leg Wheel Wheel Utility Small Storage Unit Device Seismic Detector Storage Small Storage Unit Processor Advanced Visual Processing Unit Weapon Assault Rifle Energy Gun Small Laser Energy Cannon Beam Cannon Ballistic Gun Assault Rifle Ballistic Cannon Flak Cannon Build | -11 -10 -9 -8 ------- Run | Jun Mat Mat Mat Slots Evolved 4 | . . 2 2 Power 2 | . . 1 1 Propulsion 2 | . . 1 1 Utility . | . . . . Weapon . | . . . . Parts Attached 33 | 13 2 6 12 Power 9 | 2 1 . 6 Engine 9 | 2 1 . 6 Core . | . . . . Reactor . | . . . . Propulsion 7 | 6 . . 1 Treads . | . . . . Leg 3 | 2 . . 1 Wheel 4 | 4 . . . Hover . | . . . . Flight . | . . . . Utility 4 | 2 1 . 1 Device 1 | . 1 . . Storage 2 | 2 . . . Processor 1 | . . . 1 Hackware . | . . . . Protection . | . . . . Artifact . | . . . . Weapon 13 | 3 . 6 4 Energy Gun 6 | 1 . 3 2 Energy Cannon 4 | . . 3 1 Ballistic Gun 2 | 2 . . . Ballistic Cannon 1 | . . . 1 Launcher . | . . . . Special Weapon . | . . . . Impact Weapon . | . . . . Slashing Weapon . | . . . . Piercing Weapon . | . . . . Special Melee Weapon . | . . . . Unidentified Prototypes 3 | . . . 3 Parts Lost 7 | 3 . 1 3 Power 1 | . . 1 . Propulsion 2 | 2 . . . Utility 1 | . . . 1 Weapon 3 | 1 . . 2 Highest Loss Streak 3 | 3 . 1 2 To Critical Strikes . | . . . . Average Slot Usage (%) 18 | . 40 6 11 Engine 5 | . 14 1 2 Wheel 3 | . 13 . . Storage 1 | . 6 . . Processor 1 | . . . 4 Energy Gun 2 | . 2 2 1 Energy Cannon 1 | . . 2 . Naked Turns 211 | . . 114 97 Heaviest Build 31 | 15 15 6 31 Greatest Support 26 | 26 20 3 13 Greatest Overweight (x) 3 | 3 . 1 2 Average Overweight (x) . | . . . . Largest Inventory Capacity 8 | 8 8 5 5 Average Capacity 7 | 7 5 5 5 Most Carried 8 | 8 8 5 5 Average Carried . | . 3 4 3 Final Capacity 8 | 8 5 5 5 Final Carried 7 | 7 4 5 2 Class Distribution -------------------- 100% | Mutant Dominant Class ---------------- Mutant | -10/Materials Mutant | -9/Materials Mutant | -8/Materials Resources | -11 -10 -9 -8 ----------- Run | Jun Mat Mat Mat Matter Collected 460 | 355 . 75 30 Remotely . | . . . . Salvage Created 369 | 22 . 295 52 Parts 22 | 4 . 16 2 Haulers Intercepted 1 | . . 1 . Recyclers Shooed . | . . . . Parts Field Recycled . | . . . . Retrieved Matter . | . . . . Parts Self-Destructed . | . . . . Prevented . | . . . . Kills | -11 -10 -9 -8 ------- Run | Jun Mat Mat Mat Combat Hostiles Destroyed 8 | 2 . 5 1 Guns 6 | 2 . 3 1 Cannons 2 | . . 2 . Classes Destroyed 5 | 2 . 3 . Tunneler 1 | 1 . . . Hauler 1 | . . 1 . Grunt 4 | . . 4 . Sentry 2 | . . 1 1 Demolisher 2 | 2 . . . Best Kill Streak 4 | 2 . 4 1 Combat Bots Only 3 | 2 . 3 1 Max Kills in Single Turn 1 | 1 . 1 1 Gunslinging . | . . . . Exploded . | . . . . Melee . | . . . . Uniques/NPCs Destroyed . | . . . . Combat | -11 -10 -9 -8 -------- Run | Jun Mat Mat Mat Damage Taken 1744 | 517 16 315 896 Core 887 | 165 . 171 551 Absorbed by Shields . | . . . . Core Remaining (%) 41 | 34 34 57 . Volleys Fired 28 | 12 . 9 7 Largest 2 | 2 . 2 2 Hottest 116 | 60 . 116 116 Shots Fired 48 | 16 . 18 14 Gun 32 | 16 . 9 7 Cannon 16 | . . 9 7 Launcher . | . . . . Special . | . . . . Kinetic 19 | 15 . . 4 Thermal 25 | 1 . 14 10 Explosive . | . . . . Electromagnetic 4 | . . 4 . Robot Hit Streak 12 | 3 . 9 12 Robot Miss Streak 4 | 4 . 1 3 Penetration Max . | . . . . Secondary Targets . | . . . . Shots Hit Robots 34 | 9 . 14 11 Core Hits 19 | 5 . 9 5 Critical Kills . | . . . . Critical Parts Destroyed . | . . . . Critical Strikes 1 | . . . 1 Burn 1 | . . . 1 Melee Attacks . | . . . . Impact . | . . . . Slashing . | . . . . Piercing . | . . . . Sneak Attacks . | . . . . Combat Hostiles . | . . . . Follow-up Attacks . | . . . . Damage Inflicted 603 | 129 . 231 243 Guns 305 | 121 . 126 58 Cannons 267 | . . 105 162 Explosions . | . . . . Melee . | . . . . Ramming 31 | 8 . . 23 Kinetic 220 | 111 . . 109 Thermal 299 | 10 . 178 111 Explosive . | . . . . Electromagnetic 53 | . . 53 . Impact . | . . . . Slashing . | . . . . Piercing . | . . . . Highest Corruption . | . . . . Average Corruption . | . . . . Corruption Purged . | . . . . Corruption Blocked . | . . . . Overload Shots . | . . . . Overflow Damage . | . . . . Projectiles . | . . . . Explosions . | . . . . Melee . | . . . . Knockbacks 3 | . . . 3 Impact . | . . . . Kinetic 2 | . . . 2 Secondary 1 | . . . 1 Self-Inflicted Damage 11 | . . . 11 Shots . | . . . . Rammed 4 | . . . 4 Targets Rammed 5 | 1 . . 4 Kicked 1 | 1 . . . Crushed . | . . . . Highest Temperature 305 | . . 182 305 Average Temperature 110 | . . 66 148 Received Heat Transfer 630 | . 9 153 468 Effects 1 | . . . 1 Interference 1 | . . . 1 Siege Activations . | . . . . Robots Corrupted . | . . . . Combat Hostiles . | . . . . Parts Fried . | . . . . Impact Corruptions . | . . . . Robots Melted . | . . . . Combat Hostiles . | . . . . Parts Melted 2 | . . 1 1 Heat Transferred 765 | 25 . 407 333 Parts Sabotaged . | . . . . Parts Stolen . | . . . . Parts Stripped . | . . . . Power Chain Reactions . | . . . . Missiles Intercepted . | . . . . Alert | -11 -10 -9 -8 ------- Run | Jun Mat Mat Mat Peak Influence 371 | 50 71 371 236 Initial 156 | . 26 29 156 Average 21 | 4 40 167 208 Maximum Alert Level 1 | . . 1 1 Low Security (%) 94 | 100 100 68 11 Level 1 5 | . . 31 88 Level 2 . | . . . . Level 3 . | . . . . Level 4 . | . . . . Level 5 . | . . . . High Security . | . . . . Max Security . | . . . . Squads Dispatched 4 | . . 2 2 Investigation . | . . . . Extermination . | . . . . Reinforcement 3 | . . 2 1 Assault . | . . . . Garrison 1 | . . . 1 Intercept . | . . . . Searches Triggered . | . . . . Construction Impeded . | . . . . Haulers Reinforced . | . . . . Active Scanning Responses . | . . . . Cargo Convoy Interrupts . | . . . . Stealth | -11 -10 -9 -8 --------- Run | Jun Mat Mat Mat Distress Signals 2 | . . 2 . Communications Jammed . | . . . . Distress Signals . | . . . . Times Spotted 45 | 2 6 20 17 Peak Tracking Total 16 | 2 5 9 16 Tactical Retreats 5 | . 1 3 1 Traps | -11 -10 -9 -8 ------- Run | Jun Mat Mat Mat Traps Triggered 1 | . 1 . . Indirectly . | . . . . Trap Hack Attempts . | . . . . Triggered . | . . . . Disarmed . | . . . . Reprogrammed . | . . . . Reused . | . . . . Traps Extracted . | . . . . Installed . | . . . . Triggered . | . . . . Machines | -11 -10 -9 -8 ---------- Run | Jun Mat Mat Mat Machines Disabled 1 | . . 1 . Max in Single Turn 1 | . . 1 . Machines Repaired . | . . . . Machines Sabotaged . | . . . . Overloaded Fab Kills . | . . . . Hacking | -11 -10 -9 -8 --------- Run | Jun Mat Mat Mat Machines Accessed . | . . . . Terminals . | . . . . Fabricators . | . . . . Repair Stations . | . . . . Recycling Units . | . . . . Scanalyzers . | . . . . Garrison Access . | . . . . Total Hacks . | . . . . Successful . | . . . . Failed . | . . . . Catastrophic . | . . . . Database Lockouts . | . . . . Manual . | . . . . Terminals . | . . . . Fabricators . | . . . . Repair Stations . | . . . . Recycling Units . | . . . . Scanalyzers . | . . . . Garrison Access . | . . . . Terminal Hacks . | . . . . Fabricator Hacks . | . . . . Repair Station Hacks . | . . . . Recycling Unit Hacks . | . . . . Scanalyzer . | . . . . Garrison Access Hacks . | . . . . Unauthorized Hacks . | . . . . Terminals . | . . . . Fabricators . | . . . . Repair Stations . | . . . . Recycling Units . | . . . . Scanalyzers . | . . . . Garrison Access . | . . . . Data Cores Recovered . | . . . . Used . | . . . . Hacking Detections . | . . . . Full Trace Events . | . . . . Feedback Events . | . . . . Feedback Blocked . | . . . . Robot Schematics Acquired . | . . . . Robots Built . | . . . . Authchips . | . . . . Time . | . . . . Total Robot Build Rating . | . . . . Part Schematics Acquired . | . . . . Parts Built . | . . . . Authchips . | . . . . Time . | . . . . Total Part Build Rating . | . . . . Parts Repaired . | . . . . Time . | . . . . Parts Recycled . | . . . . Recycled Matter . | . . . . Retrieved Matter . | . . . . Retrieved Components . | . . . . Parts Scanalyzed . | . . . . Part Schematics Acquired . | . . . . Parts Damaged . | . . . . Bothacking | -11 -10 -9 -8 ------------ Run | Jun Mat Mat Mat Used RIF Installer . | . . . . Robots Hacked . | . . . . Non-combat . | . . . . Combat . | . . . . Robot Hacks Applied . | . . . . Relay Couplers Released . | . . . . Fabnet Peak Effective % . | . . . . Robots Rewired . | . . . . Allies Hacked . | . . . . Hacks Repelled . | . . . . Allies | -11 -10 -9 -8 -------- Run | Jun Mat Mat Mat Total Allies . | . . . . Largest Group . | . . . . Highest-Rated Group . | . . . . Highest-Rated Ally . | . . . . Total Orders . | . . . . Ally Attacks . | . . . . Total Damage . | . . . . Kills . | . . . . Allies Corrupted . | . . . . Allies Melted . | . . . . Intel | -11 -10 -9 -8 ------- Run | Jun Mat Mat Mat Robot Analysis Total . | . . . . Derelict Logs Recovered . | . . . . Drone Launches . | . . . . Drone Recoveries . | . . . . Exploration | -11 -10 -9 -8 ------------- Run | Jun Mat Mat Mat Turns Passed 4746 | 4205 145 189 207 Spaces Moved 2465 | 1683 212 280 290 Core 785 | 77 142 280 286 Treads . | . . . . Legs 265 | 261 . . 4 Wheels 1415 | 1345 70 . . Hover . | . . . . Flight . | . . . . Fastest Speed 50 | 50 50 50 50 Average Speed 82 | 95 59 51 52 Slowest Speed 260 | 200 80 100 260 Overloaded Moves . | . . . . Propulsion Burnouts . | . . . . Robots Hopped . | . . . . Cave-ins Triggered . | . . . . Exploration Rate (%) 53 | 112 36 34 30 Regions Visited 3 Branch Regions . Pre-discovered Areas . | . . . . Known Exits Taken . | . . . . Unknown Exits Taken 3 | 1 1 1 . Scrap Searched . | . . . . Spaces Dug . | . . . . Terrain Destroyed . | . . . . Melee . | . . . . Projectile . | . . . . AOE . | . . . . Terrain Rammed . | . . . . Walls Destroyed . | . . . . Machines Disabled . | . . . . Actions | -11 -10 -9 -8 --------- Run | Jun Mat Mat Mat Total 5136 | 4259 233 307 337 Wait 2539 | 2526 7 5 1 Move 2462 | 1682 211 279 290 Hop . | . . . . Pick Up 34 | 21 3 2 8 Fast Attach . | . . . . Attach 32 | 12 1 6 13 Detach 12 | . . 5 7 Swap 2 | 1 1 . . Drop 23 | 4 10 1 8 Fire 28 | 12 . 9 7 Melee . | . . . . Ram 3 | . . . 3 Kick 1 | 1 . . . Crush . | . . . . Escape Stasis . | . . . . Rewire . | . . . . Trap . | . . . . Miscellaneous . | . . . . Route ------- -11/Junkyard -10/Materials -9/Materials (discovered 2 exits: [*Mat] / [*Sto]) -8/Materials History --------- Turn | Location | Event 12 | -11/Junkyard | Discovered new exit (range 16) 3630 | -11/Junkyard | Assembled infested the area 3760 | -11/Junkyard | Core integrity fell below 50% 3790 | -11/Junkyard | Lost 3 parts (2n1w) 4206 | -11/Junkyard | Entered Materials 4208 | -10/Materials | Build established: Mutant 4343 | -10/Materials | Discovered new exit (range 16) 4351 | -10/Materials | Entered another Materials area 4351 | -9/Materials | Evolved 2 slots: Power x1, Propulsion x1 4530 | -9/Materials | Discovered new exit (range 14) 4536 | -9/Materials | Discovered new exit (range 11) 4540 | -9/Materials | Entered another Materials area 4540 | -8/Materials | Evolved 2 slots: Power x1, Propulsion x1 4712 | -8/Materials | Garrison activated, responded to threat 4724 | -8/Materials | Core integrity fell below 50% 4731 | -8/Materials | Core integrity fell below 20% 4747 | -8/Materials | Core destroyed Last Messages --------------- 04712_ G-50 Soldier calls for garrison reinforcements. 04712_ ALERT: Activating Garrison Access M001. 04715_ G-50 Soldier knocked back. 04715_ Critical hit (Burn: +37). 04717_ Beam Rifle destroyed. 04719_ Overheating: System interference. 04719_ Adv. Visual Processing Unit temporarily disabled. 04721_ Dropped Imp. Aluminum Leg. 04721_ Dropped Hvy. Deuterium Engine. 04722_ Critical hit (Burn: +37). 04722_ Dropped Hvy. Deuterium Engine. 04726_ Adv. Visual Processing Unit destroyed. 04726_ Critical hit (Burn: +37). 04729_ Slammed into Y-45 Defender. 04729_ Destabilizing: Core damaged (-11). 04730_ Slammed into S-10 Pest. 04741_ S-10 Pest destroyed. 04743_ ALERT: Suspicious intruders detected, dispatching Cutter reinforcements to area. 04747_ Slammed into U-05 Engineer. Map ----- +----------------------------------------------------+ | ?????????????????????????????????????????????????? | | ?????????????????????????????????????????????????? | | ?????????????????????????????????????????????????? | | ?????????????????????????????????????????????????? | | ?????????????????????????????????????????????????? | | ?????????????????????????????????????????????????? | | ?????????????????????????????????????????????????? | | ?????????????????????????????????????????????????? | | ?????????????????????????????????????????????????? | | ?????????????????????????????????????????????????? | | ?????????????????????????????????????????????????? | | ?????????????????????????????????????????????????? | | ???###########???????????????????????????????????? | | ???# #???????????????????????????????????? | | ???# #????????????????H??????????????????? | | ???# * #???????????????????????????????????? | | ???# =* #???????????????????????????????????? | | ???# """ #???????????????????????????????????? | | ???# """ #???????????????????????????????????? | | ???# """ "T" #???????????????????????????????????? | | ???# #???????????????????????????????????? | | ########/#####??????#+#??????????????????????????? | | #?????### ###????????????????????????? | | ####### #????????????????????????? | | gg l ##### #????????????????? | | """ """ g T @u +????????????????? | | """ """ u s u ##### #????????????????? | | """ """[ ####### #????????????????????????? | | """ """% #???#####+#####??????????????????????? | | * ###???# #??????????????????????? | | #####?# """ [ #??????????????????????? | | !!#?# """ #??????????????????????? | | !!#?# """ #??????????????????????? | | ]]#?# """ * "#??????????????????????? | | ]]#?# """ T#??????????????????????? | | ###" "## *#??? "#??????????????????????? | | #?#"G"## *#???? #??????????????????????? | | #?#"""## #####????########??????????????????????? | | #?###### #??????????????????????????????????????? | | ########+#??????????????????????????????????????? | | # #?###??????????????????????????????????? | | # "" #?# #####??????????????????????????????? | | + ""S [#?# #??????????????????????????????? | | # "" * #?# *** #??????????????????????????????? | | # #?# ** #??????????????????????????????? | | ##! #?# * #??????????????????????????????? | | ########### #??????????????????????????????? | | # #??????????????????????????????? | | + #??????????????????????????????? | | # !#??????????????????????????????? | +----------------------------------------------------+ Best States ------------- Heat Dissipation 31 Energy Generation 31 Energy Capacity 520 Matter Stores 400 Matter Capacity 400 Sight Range 20 Terrain Scan Density 10 Evasion (%) 55 Item Schematics ----------------- None Robot Schematics ------------------ None Fabricated ------------ Nothing Alien Tech Used ----------------- None Achievements -------------- Curiosity Killed The Cat Challenges ------------ None Game ------ Seed BombDirtyInterpreter Manual? 0 Play Time 00:28:16 Cumulative 16.8 hours Start 2023.07.26 @ 13:53:58 End 2023.07.26 @ 16:19:37 Sessions 1 Manual Loads 0 Difficulty Rogue Special Mode None Game No. 38 Rogue 37 Adventurer 1 Explorer 0 Win Type - Total 0 Types 0/0/0/0/0/0/0/0/0 Lore% 21 Gallery% 28 Achievement% 21 Wizard Run 0 Options --------- ASCII 0 Keyboard 0 Movement Numpad Keybinds 0 Fullscreen 1 Font 18/SmallcapsGlow Map View 76x50 Tactical HUD 1 Map Filters NONE Filters NONE Steam 1 RUN: 51b92336-45dd-4a1b-9319-54a3a7516cfd